[Event "NJSK 2026 Jeugd B"]
[Site "Helmond, Netherlands"]
[Date "2026.04.30"]
[Round "6.6"]
[White "Winter, Sven"]
[Black "Hallibert, Emilien"]
[Result "1-0"]
[TimeControl "90min/40moves + 30min + 30sec/move"]
[WhiteTitle "-"]
[BlackTitle "-"]
[WhiteFideId "1092375"]
[BlackFideId "1092561"]
[WhiteElo "2013"]
[BlackElo "1975"]

1. e4 {[%clk 01:30:45]} {[%emt 00:00:14]} c5 {[%clk 01:30:52]} {[%emt
00:00:08]} 2. Nf3 {[%clk 01:30:43]} {[%emt 00:00:32]} d6 {[%clk 01:31:07]}
{[%emt 00:00:15]} 3. d4 {[%clk 01:30:54]} {[%emt 00:00:20]} cxd4 {[%clk
01:31:32]} {[%emt 00:00:04]} 4. Nxd4 {[%clk 01:31:17]} {[%emt 00:00:08]} Nf6
{[%clk 01:31:59]} {[%emt 00:00:03]} 5. Nc3 {[%clk 01:31:35]} {[%emt 00:00:12]}
a6 {[%clk 01:32:25]} {[%emt 00:00:04]} 6. Bg5 {[%clk 01:31:35]} {[%emt
00:00:30]} e6 {[%clk 01:32:50]} {[%emt 00:00:04]} 7. Qe2 {[%clk 01:30:53]}
{[%emt 00:01:12]} Be7 {[%clk 01:33:08]} {[%emt 00:00:12]} 8. f4 {[%clk
01:30:33]} {[%emt 00:00:50]} h6 {[%clk 01:29:51]} {[%emt 00:03:48]} 9. Bxf6
{[%clk 01:23:02]} {[%emt 00:08:01]} Bxf6 {[%clk 01:29:51]} {[%emt 00:00:29]} 10.
O-O-O {[%clk 01:22:59]} {[%emt 00:00:33]} Qc7 {[%clk 01:26:48]} {[%emt
00:03:34]} 11. Qd3 {[%clk 01:05:44]} {[%emt 00:17:43]} Nd7 {[%clk 01:19:01]}
{[%emt 00:08:17]} 12. Nb3 {[%clk 00:59:32]} {[%emt 00:06:42]} Bxc3 {[%clk
01:13:28]} {[%emt 00:06:03]} 13. bxc3 {[%clk 00:56:54]} {[%emt 00:03:09]} Nf6
{[%clk 01:03:12]} {[%emt 00:10:45]} 14. g4 {[%clk 00:52:33]} {[%emt 00:04:51]}
e5 {[%clk 00:57:48]} {[%emt 00:05:53]} 15. g5 {[%clk 00:45:52]} {[%emt
00:07:11]} Ng4 {[%clk 00:41:02]} {[%emt 00:17:17]} 16. Qd2 {[%clk 00:31:07]}
{[%emt 00:15:15]} exf4 {[%clk 00:36:30]} {[%emt 00:05:02]} 17. gxh6 {[%clk
00:26:30]} {[%emt 00:05:06]} Rxh6 {[%clk 00:36:32]} {[%emt 00:00:29]} 18. Qxf4
{[%clk 00:24:16]} {[%emt 00:02:43]} Rf6 {[%clk 00:33:33]} {[%emt 00:03:29]} 19.
Qg3 {[%clk 00:20:25]} {[%emt 00:04:20]} Nf2 {[%clk 00:32:29]} {[%emt 00:01:34]}
20. Qxg7 {[%clk 00:20:18]} {[%emt 00:00:38]} Qxc3 {[%clk 00:31:23]} {[%emt
00:01:36]} 21. Rd4 {[%clk 00:15:21]} {[%emt 00:05:28]} Qe3+ {[%clk 00:26:33]}
{[%emt 00:05:20]} 22. Kb2 {[%clk 00:14:16]} {[%emt 00:01:34]} Rg6 {[%clk
00:26:07]} {[%emt 00:00:56]} 23. Qh8+ {[%clk 00:14:24]} {[%emt 00:00:22]} Ke7
{[%clk 00:26:22]} {[%emt 00:00:14]} 24. Rc4 {[%clk 00:11:53]} {[%emt 00:03:02]}
Qb6 {[%clk 00:18:51]} {[%emt 00:08:01]} 25. Rxc8 {[%clk 00:10:33]} {[%emt
00:01:51]} Rxc8 {[%clk 00:19:02]} {[%emt 00:00:18]} 26. Qxc8 {[%clk 00:10:53]}
{[%emt 00:00:10]} Nxh1 {[%clk 00:18:59]} {[%emt 00:00:33]} 27. a4 {[%clk
00:08:23]} {[%emt 00:03:01]} Nf2 {[%clk 00:17:23]} {[%emt 00:02:06]} 28. Qh8
{[%clk 00:07:24]} {[%emt 00:01:28]} Nd1+ {[%clk 00:16:54]} {[%emt 00:00:59]} 29.
Kc1 {[%clk 00:05:42]} {[%emt 00:02:13]} Qg1 {[%clk 00:12:48]} {[%emt 00:04:35]}
30. Qh4+ {[%clk 00:04:16]} {[%emt 00:01:55]} Rf6 {[%clk 00:12:52]} {[%emt
00:00:26]} 31. e5 {[%clk 00:04:00]} {[%emt 00:00:46]} dxe5 {[%clk 00:12:44]}
{[%emt 00:00:38]} 32. Qb4+ {[%clk 00:02:07]} {[%emt 00:02:23]} Ke8 {[%clk
00:10:33]} {[%emt 00:02:42]} 33. Bc4 {[%clk 00:00:36]} {[%emt 00:02:01]} Rc6
{[%clk 00:05:08]} {[%emt 00:05:55]} 34. Bxf7+ {[%emt 00:00:30]} Kd8 {[%clk
00:03:32]} {[%emt 00:02:05]} 35. Qd2+ {[%clk 00:00:36]} {[%emt 00:00:31]} Kc7
{[%clk 00:03:46]} {[%emt 00:00:16]} 36. Qxd1 {[%clk 00:00:53]} {[%emt
00:00:14]} Qxd1+ {[%clk 00:03:43]} {[%emt 00:00:32]} 37. Kxd1 {[%clk 00:01:17]}
{[%emt 00:00:07]} Rh6 {[%clk 00:04:12]} {[%emt 00:00:01]} 38. Nd2 {[%clk
00:00:53]} {[%emt 00:00:54]} Rxh2 {[%clk 00:04:30]} {[%emt 00:00:11]} 39. Bd5
{[%clk 00:01:02]} {[%emt 00:00:21]} Rh4 {[%clk 00:02:46]} {[%emt 00:02:14]} 40.
Be4 {[%clk 00:01:04]} {[%emt 00:00:28]} b6 {[%clk 00:02:23]} {[%emt 00:00:53]}
41. c3 {[%clk 00:29:09]} {[%emt 00:02:26]} Kd6 {[%clk 00:32:28]} {[%emt
00:00:24]} 42. Kc2 {[%clk 00:27:41]} {[%emt 00:01:58]} Rh2 {[%clk 00:31:57]}
{[%emt 00:01:01]} 43. Kd3 {[%clk 00:27:15]} {[%emt 00:00:56]} Rh3+ {[%clk
00:32:24]} {[%emt 00:00:04]} 44. Bf3 {[%clk 00:26:41]} {[%emt 00:01:03]} Rh8
{[%clk 00:30:36]} {[%emt 00:02:19]} 45. Nc4+ {[%clk 00:26:21]} {[%emt
00:00:49]} Kc5 {[%clk 00:30:51]} {[%emt 00:00:14]} 46. Nxe5 {[%clk 00:26:24]}
{[%emt 00:00:28]} Rd8+ {[%clk 00:30:47]} {[%emt 00:00:35]} 47. Kc2 {[%clk
00:26:04]} {[%emt 00:00:50]} a5 {[%clk 00:23:57]} {[%emt 00:07:19]} 48. Nd3+
{[%clk 00:23:45]} {[%emt 00:02:50]} Kd6 {[%clk 00:24:11]} {[%emt 00:00:15]} 49.
Bb7 {[%clk 00:20:54]} {[%emt 00:03:22]} Rh8 {[%clk 00:24:12]} {[%emt 00:00:28]}
50. Bf3 {[%clk 00:20:20]} {[%emt 00:01:05]} Rd8 {[%clk 00:24:30]} {[%emt
00:00:12]} 51. Nb2 {[%clk 00:20:23]} {[%emt 00:00:25]} Rf8 {[%clk 00:24:47]}
{[%emt 00:00:14]} 52. Nc4+ {[%clk 00:20:24]} {[%emt 00:00:29]} Kc5 {[%clk
00:25:06]} {[%emt 00:00:12]} 53. Nd2 {[%clk 00:20:09]} {[%emt 00:00:45]} Rf4
{[%clk 00:24:26]} {[%emt 00:01:10]} 54. Be4 {[%clk 00:19:04]} {[%emt 00:01:36]}
Rh4 {[%clk 00:23:14]} {[%emt 00:01:41]} 55. Kd3 {[%clk 00:18:41]} {[%emt
00:00:53]} Rh3+ {[%clk 00:23:32]} {[%emt 00:00:12]} 56. Bf3 {[%clk 00:18:57]}
{[%emt 00:00:14]} Kd6 {[%clk 00:20:53]} {[%emt 00:03:08]} 57. Kd4 {[%clk
00:18:35]} {[%emt 00:00:53]} Kc7 {[%clk 00:21:12]} {[%emt 00:00:12]} 58. Bd5
{[%clk 00:16:48]} {[%emt 00:02:16]} Rh4+ {[%clk 00:21:08]} {[%emt 00:00:33]} 59.
Ne4 {[%clk 00:16:24]} {[%emt 00:00:54]} Rh3 {[%clk 00:21:13]} {[%emt 00:00:26]}
60. c4 {[%clk 00:16:03]} {[%emt 00:00:51]} Rh5 {[%clk 00:20:24]} {[%emt
00:01:19]} 61. Nc3 {[%clk 00:15:23]} {[%emt 00:01:09]} Rh4+ {[%clk 00:20:31]}
{[%emt 00:00:23]} 62. Be4 {[%clk 00:15:14]} {[%emt 00:00:40]} Rh6 {[%clk
00:18:06]} {[%emt 00:02:55]} 63. c5 {[%clk 00:11:49]} {[%emt 00:03:56]} bxc5+
{[%clk 00:17:56]} {[%emt 00:00:40]} 64. Kxc5 {[%clk 00:12:08]} {[%emt
00:00:10]} Ra6 {[%clk 00:15:36]} {[%emt 00:02:51]} 65. Kb5 {[%clk 00:12:08]}
{[%emt 00:00:30]} Ra7 {[%clk 00:15:47]} {[%emt 00:00:19]} 66. Bd5 {[%clk
00:11:46]} {[%emt 00:00:52]} Kd6 {[%clk 00:15:56]} {[%emt 00:00:21]} 67. Kb6
{[%clk 00:09:26]} {[%emt 00:02:50]} Rh7 {[%clk 00:16:06]} {[%emt 00:00:20]} 68.
Bc6 {[%clk 00:08:26]} {[%emt 00:01:30]} Rh4 {[%clk 00:15:36]} {[%emt 00:01:00]}
69. Nb5 {[%clk 00:08:27]} {[%emt 00:00:29]} Ke7 {[%clk 00:15:53]} {[%emt
00:00:12]} 70. Kxa5 {[%clk 00:08:26]} {[%emt 00:00:32]} Kd8 {[%clk 00:16:02]}
{[%emt 00:00:20]} 71. Bd5 {[%clk 00:07:26]} {[%emt 00:01:29]} Kc8 {[%clk
00:16:08]} {[%emt 00:00:25]} 72. Nc3 {[%clk 00:07:02]} {[%emt 00:00:54]} Rxa4+
{[%clk 00:16:19]} {[%emt 00:00:20]} 73. Kxa4 {[%clk 00:07:13]} {[%emt
00:00:19]} Kd7 {[%clk 00:16:41]} {[%emt 00:00:09]} 74. Ne4 {[%clk 00:07:25]}
{[%emt 00:00:18]} Ke7 {[%clk 00:16:30]} {[%emt 00:00:41]} 75. Kb4 {[%clk
00:07:43]} {[%emt 00:00:12]} Kf8 {[%clk 00:16:40]} {[%emt 00:00:19]} 76. Kc5
{[%clk 00:08:00]} {[%emt 00:00:13]} Kg7 {[%clk 00:17:07]} {[%emt 00:00:03]} 77.
Kd6 {[%clk 00:08:20]} {[%emt 00:00:12]} Kg6 {[%clk 00:16:44]} {[%emt 00:00:52]}
78. Ke5 {[%clk 00:08:23]} {[%emt 00:00:26]} Kg7 {[%clk 00:17:05]} {[%emt
00:00:10]} 79. Kf5 {[%clk 00:08:32]} {[%emt 00:00:21]} Kh6 {[%clk 00:17:22]}
{[%emt 00:00:13]} 80. Ng5 {[%clk 00:08:34]} {[%emt 00:00:28]} Kg7 {[%clk
00:17:47]} {[%emt 00:00:05]} 81. Nf7 {[%clk 00:07:52]} {[%emt 00:01:12]} Kg8
{[%clk 00:17:19]} {[%emt 00:00:58]} 82. Kf6 {[%clk 00:07:55]} {[%emt 00:00:26]}
Kh7 {[%clk 00:17:39]} {[%emt 00:00:10]} 83. Ne5 {[%clk 00:07:24]} {[%emt
00:01:01]} Kh8 {[%clk 00:18:02]} {[%emt 00:00:08]} 84. Ng6+ {[%clk 00:07:32]}
{[%emt 00:00:22]} Kh7 {[%clk 00:18:28]} {[%emt 00:00:05]} 85. Bc4 {[%clk
00:07:21]} {[%emt 00:00:40]} Kh6 {[%clk 00:18:47]} {[%emt 00:00:10]} 86. Bg8
{[%clk 00:07:03]} {[%emt 00:00:48]} Kh5 {[%clk 00:19:12]} {[%emt 00:00:05]} 87.
Ne5 {[%clk 00:05:06]} {[%emt 00:02:28]} Kh4 {[%clk 00:19:09]} {[%emt 00:00:33]}
88. Kf5 {[%clk 00:05:25]} {[%emt 00:00:11]} Kg3 {[%clk 00:19:24]} {[%emt
00:00:15]} 89. Bc4 {[%clk 00:04:43]} {[%emt 00:01:13]} Kf2 {[%clk 00:19:40]}
{[%emt 00:00:14]} 90. Ke4 {[%clk 00:04:20]} {[%emt 00:00:53]} Ke1 {[%clk
00:20:01]} {[%emt 00:00:09]} 91. Kd3 {[%clk 00:03:11]} {[%emt 00:01:38]} Kf2
{[%clk 00:19:34]} {[%emt 00:00:55]} 92. Kd2 {[%clk 00:03:13]} {[%emt 00:02:31]}
Kg3 {[%clk 00:19:54]} {[%emt 00:00:11]} 93. Ke3 {[%clk 00:03:20]} {[%emt
00:00:24]} Kh4 {[%clk 00:20:19]} {[%emt 00:00:04]} 94. Nf7 {[%clk 00:03:16]}
{[%emt 00:00:34]} Kh5 {[%clk 00:20:02]} {[%emt 00:00:48]} 95. Bd3 {[%clk
00:03:36]} {[%emt 00:00:10]} Kg4 {[%clk 00:20:16]} {[%emt 00:00:15]} 96. Be4
{[%clk 00:03:53]} {[%emt 00:00:12]} Kh4 {[%clk 00:20:26]} {[%emt 00:00:20]} 97.
Kf3 {[%clk 00:03:52]} {[%emt 00:00:31]} Kh5 {[%clk 00:20:05]} {[%emt 00:00:52]}
98. Bd3 {[%clk 00:03:39]} {[%emt 00:00:43]} Kh4 {[%clk 00:20:30]} {[%emt
00:00:05]} 99. Kf4 {[%clk 00:03:50]} {[%emt 00:00:19]} Kh3 {[%clk 00:20:36]}
{[%emt 00:00:25]} 100. Bf1+ {[%clk 00:03:04]} {[%emt 00:01:16]} Kh4 {[%clk
00:20:35]} {[%emt 00:00:31]} 101. Be2 {[%clk 00:03:12]} {[%emt 00:00:21]} Kh3
{[%clk 00:21:01]} {[%emt 00:00:05]} 102. Ne5 {[%clk 00:03:15]} {[%emt
00:00:27]} Kg2 {[%clk 00:21:05]} {[%emt 00:00:26]} 103. Nd3 {[%clk 00:02:27]}
{[%emt 00:01:18]} Kh3 {[%clk 00:21:18]} {[%emt 00:00:17]} 104. Ne1 {[%clk
00:02:17]} {[%emt 00:00:41]} Kh4 {[%clk 00:20:46]} {[%emt 00:01:01]} 105. Bf3
{[%clk 00:02:13]} {[%emt 00:00:34]} Kh3 {[%clk 00:21:12]} {[%emt 00:00:04]} 106.
Ng2 {[%clk 00:02:29]} {[%emt 00:00:13]} Kh2 {[%clk 00:21:41]} {[%emt 00:00:02]}
107. Ke3 {[%clk 00:02:22]} {[%emt 00:00:36]} Kg3 {[%clk 00:22:06]} {[%emt
00:00:06]} 108. Ke2 {[%clk 00:02:39]} {[%emt 00:00:12]} Kh2 {[%clk 00:22:00]}
{[%emt 00:00:36]} 109. Kf2 {[%clk 00:02:31]} {[%emt 00:00:38]} Kh3 {[%clk
00:22:22]} {[%emt 00:00:09]} 110. Be2 {[%clk 00:02:49]} {[%emt 00:00:13]} Kh2
{[%clk 00:22:49]} {[%emt 00:00:03]} 111. Bg4 {[%clk 00:02:15]} {[%emt
00:01:03]} Kh1 {[%clk 00:23:15]} {[%emt 00:00:04]} 112. Ne3 {[%clk 00:02:19]}
{[%emt 00:00:26]} Kh2 {[%clk 00:23:40]} {[%emt 00:00:05]} 113. Nf1 {[%clk
00:02:47]} {[%emt 00:00:03]} 1-0

[Event "NJSK 2026 Jeugd B"]
[Site "Helmond, Netherlands"]
[Date "2026.04.30"]
[Round "6.7"]
[White "Wierenga, Luuk"]
[Black "Etienne, Ghilon"]
[Result "1/2-1/2"]
[TimeControl "90min/40moves + 30min + 30sec/move"]
[WhiteTitle "-"]
[BlackTitle "-"]
[WhiteFideId "1094874"]
[BlackFideId "1084267"]
[WhiteElo "1977"]
[BlackElo "1976"]

1. d4 {[%clk 01:30:55]} {[%emt 00:00:04]} Nf6 {[%clk 01:30:30]} {[%emt
00:00:33]} 2. Nf3 {[%clk 01:31:19]} {[%emt 00:00:06]} g6 {[%clk 01:30:55]}
{[%emt 00:00:03]} 3. Bg5 {[%clk 01:31:43]} {[%emt 00:00:04]} Bg7 {[%clk
01:31:19]} {[%emt 00:00:06]} 4. Nbd2 {[%clk 01:32:08]} {[%emt 00:00:05]} d5
{[%clk 01:28:46]} {[%emt 00:03:03]} 5. e3 {[%clk 01:32:14]} {[%emt 00:00:26]}
h6 {[%clk 01:28:43]} {[%emt 00:00:32]} 6. Bf4 {[%clk 01:30:22]} {[%emt
00:02:21]} O-O {[%clk 01:24:37]} {[%emt 00:04:36]} 7. Be2 {[%clk 01:25:01]}
{[%emt 00:05:51]} c5 {[%clk 01:22:34]} {[%emt 00:02:34]} 8. O-O {[%clk
01:19:07]} {[%emt 00:06:22]} Nc6 {[%clk 01:12:02]} {[%emt 00:11:03]} 9. dxc5
{[%clk 01:10:07]} {[%emt 00:09:29]} Nh5 {[%clk 01:01:40]} {[%emt 00:10:52]} 10.
c3 {[%clk 00:58:38]} {[%emt 00:12:00]} Nxf4 {[%clk 00:58:55]} {[%emt 00:03:15]}
11. exf4 {[%clk 00:58:56]} {[%emt 00:00:12]} d4 {[%clk 00:59:18]} {[%emt
00:00:07]} 12. cxd4 {[%clk 00:54:00]} {[%emt 00:05:27]} Nxd4 {[%clk 00:59:35]}
{[%emt 00:00:13]} 13. Nb3 {[%clk 00:49:49]} {[%emt 00:04:40]} Nxf3+ {[%clk
00:56:02]} {[%emt 00:04:02]} 14. Bxf3 {[%clk 00:50:12]} {[%emt 00:00:07]} Bxb2
{[%clk 00:56:20]} {[%emt 00:00:13]} 15. Qxd8 {[%clk 00:42:53]} {[%emt
00:07:49]} Rxd8 {[%clk 00:56:44]} {[%emt 00:00:06]} 16. Rad1 {[%clk 00:42:39]}
{[%emt 00:00:44]} Rf8 {[%clk 00:53:34]} {[%emt 00:03:40]} 17. Rb1 {[%clk
00:40:13]} {[%emt 00:02:56]} Ba3 {[%clk 00:50:52]} {[%emt 00:03:12]} 18. Rfe1
{[%clk 00:27:58]} {[%emt 00:12:46]} Bf5 {[%clk 00:41:45]} {[%emt 00:09:37]} 19.
Be4 {[%clk 00:25:02]} {[%emt 00:03:26]} Bxe4 {[%clk 00:41:08]} {[%emt
00:01:07]} 20. Rxe4 {[%clk 00:25:30]} {[%emt 00:00:02]} b6 {[%clk 00:41:31]}
{[%emt 00:00:07]} 21. c6 {[%clk 00:22:27]} {[%emt 00:03:33]} Rfc8 {[%clk
00:36:44]} {[%emt 00:05:17]} 22. Ra4 {[%clk 00:20:52]} {[%emt 00:02:06]} Bd6
{[%clk 00:37:06]} {[%emt 00:00:07]} 23. Rc1 {[%clk 00:20:49]} {[%emt 00:00:33]}
Rc7 {[%clk 00:33:47]} {[%emt 00:03:49]} 24. g3 {[%clk 00:19:33]} {[%emt
00:01:45]} Rac8 {[%clk 00:32:50]} {[%emt 00:01:27]} 25. Kg2 {[%clk 00:14:04]}
{[%emt 00:05:59]} Rxc6 {[%clk 00:28:16]} {[%emt 00:05:06]} 1/2-1/2

[Event "NJSK 2026 Jeugd B"]
[Site "Helmond, Netherlands"]
[Date "2026.04.30"]
[Round "6.8"]
[White "Roebers, Bregje"]
[Black "Woldhuis, Marnik"]
[Result "1-0"]
[TimeControl "90min/40moves + 30min + 30sec/move"]
[WhiteTitle "-"]
[BlackTitle "-"]
[WhiteFideId "1085174"]
[BlackFideId "1087096"]
[WhiteElo "1945"]
[BlackElo "1939"]

1. e4 {[%clk 01:30:57]} {[%emt 00:00:02]} c5 {[%clk 01:30:57]} {[%emt
00:00:03]} 2. Nf3 {[%clk 01:31:02]} {[%emt 00:00:27]} Nf6 {[%clk 01:31:23]}
{[%emt 00:00:05]} 3. d3 {[%clk 01:26:13]} {[%emt 00:05:17]} d5 {[%clk
01:31:31]} {[%emt 00:00:21]} 4. Nbd2 {[%clk 01:25:11]} {[%emt 00:01:33]} Nc6
{[%clk 01:28:26]} {[%emt 00:03:35]} 5. g3 {[%clk 01:16:28]} {[%emt 00:09:13]}
e5 {[%clk 01:00:46]} {[%emt 00:28:09]} 6. exd5 {[%clk 01:09:26]} {[%emt
00:07:31]} Nxd5 {[%clk 01:00:25]} {[%emt 00:00:50]} 7. Bg2 {[%clk 01:09:45]}
{[%emt 00:00:12]} Be6 {[%clk 00:59:40]} {[%emt 00:01:15]} 8. O-O {[%clk
01:08:19]} {[%emt 00:01:57]} Be7 {[%clk 00:59:31]} {[%emt 00:00:39]} 9. Re1
{[%clk 01:04:45]} {[%emt 00:04:04]} f6 {[%clk 00:54:49]} {[%emt 00:05:11]} 10.
c3 {[%clk 00:52:32]} {[%emt 00:12:43]} Nc7 {[%clk 00:50:56]} {[%emt 00:04:23]}
11. Nb3 {[%clk 00:46:22]} {[%emt 00:06:41]} c4 {[%clk 00:37:27]} {[%emt
00:13:59]} 12. dxc4 {[%clk 00:43:02]} {[%emt 00:03:50]} Bxc4 {[%clk 00:33:56]}
{[%emt 00:04:02]} 13. Nfd2 {[%clk 00:38:35]} {[%emt 00:04:57]} Bf7 {[%clk
00:33:11]} {[%emt 00:01:14]} 14. Ne4 {[%clk 00:38:53]} {[%emt 00:00:12]} Ne6
{[%clk 00:29:07]} {[%emt 00:04:33]} 15. Be3 {[%clk 00:35:21]} {[%emt 00:04:02]}
Qc7 {[%clk 00:26:35]} {[%emt 00:03:02]} 16. Nbc5 {[%clk 00:29:59]} {[%emt
00:05:53]} O-O {[%clk 00:23:36]} {[%emt 00:03:27]} 17. Qa4 {[%clk 00:24:02]}
{[%emt 00:06:28]} Rac8 {[%clk 00:18:38]} {[%emt 00:05:28]} 18. Rad1 {[%clk
00:21:43]} {[%emt 00:02:50]} Rfd8 {[%clk 00:15:43]} {[%emt 00:03:25]} 19. Bh3
{[%clk 00:17:17]} {[%emt 00:04:56]} Rxd1 {[%clk 00:09:22]} {[%emt 00:06:51]} 20.
Rxd1 {[%clk 00:16:34]} {[%emt 00:01:13]} Nxc5 {[%clk 00:09:43]} {[%emt
00:00:09]} 21. Nxc5 {[%clk 00:14:20]} {[%emt 00:02:44]} Bxc5 {[%clk 00:08:18]}
{[%emt 00:01:55]} 22. Bxc8 {[%clk 00:03:18]} {[%emt 00:11:32]} Bxe3 {[%clk
00:07:59]} {[%emt 00:00:48]} 23. Qg4 {[%clk 00:03:22]} {[%emt 00:00:27]} Bc5
{[%clk 00:06:24]} {[%emt 00:02:05]} 24. Be6 {[%clk 00:03:27]} {[%emt 00:00:25]}
Nd8 {[%clk 00:01:23]} {[%emt 00:05:32]} 25. Rd7 {[%clk 00:00:50]} {[%emt
00:03:07]} Qb6 {[%clk 00:01:20]} {[%emt 00:00:33]} 26. Bxf7+ {[%clk 00:01:01]}
{[%emt 00:00:18]} Nxf7 {[%clk 00:01:44]} {[%emt 00:00:07]} 27. Qc4 {[%clk
00:01:22]} {[%emt 00:00:09]} Bxf2+ {[%clk 00:00:49]} {[%emt 00:01:25]} 28. Kf1
{[%clk 00:01:41]} {[%emt 00:00:10]} Kh8 {[%clk 00:00:40]} {[%emt 00:00:40]} 29.
Qc8+ {[%clk 00:01:33]} {[%emt 00:00:07]} 1-0

[Event "NJSK 2026 Jeugd B"]
[Site "Helmond, Netherlands"]
[Date "2026.04.30"]
[Round "6.9"]
[White "Van Haaften, Jelle"]
[Black "Okita, Shinsaku"]
[Result "1-0"]
[TimeControl "90min/40moves + 30min + 30sec/move"]
[WhiteTitle "-"]
[BlackTitle "-"]
[WhiteFideId "1096281"]
[BlackFideId "1094823"]
[WhiteElo "1882"]
[BlackElo "1899"]

1. d4 {[%clk 01:30:57]} {[%emt 00:00:02]} d5 {[%clk 01:30:57]} {[%emt
00:00:04]} 2. c4 {[%clk 01:31:23]} {[%emt 00:00:04]} c6 {[%clk 01:31:24]}
{[%emt 00:00:03]} 3. Nf3 {[%clk 01:31:50]} {[%emt 00:00:03]} Nf6 {[%clk
01:31:51]} {[%emt 00:00:03]} 4. Nc3 {[%clk 01:31:09]} {[%emt 00:01:10]} dxc4
{[%clk 01:32:17]} {[%emt 00:00:04]} 5. Bg5 {[%clk 01:21:05]} {[%emt 00:10:35]}
b5 {[%clk 01:28:56]} {[%emt 00:03:52]} 6. g3 {[%clk 01:15:29]} {[%emt
00:06:06]} e6 {[%clk 01:17:10]} {[%emt 00:12:14]} 7. Bg2 {[%clk 01:14:22]}
{[%emt 00:01:37]} b4 {[%clk 01:09:11]} {[%emt 00:08:30]} 8. Ne4 {[%clk
01:01:48]} {[%emt 00:13:01]} Be7 {[%clk 01:01:22]} {[%emt 00:08:21]} 9. Ne5
{[%clk 00:59:40]} {[%emt 00:02:39]} Nxe4 {[%clk 00:53:24]} {[%emt 00:08:27]} 10.
Bxe7 {[%clk 00:59:50]} {[%emt 00:00:19]} Qxe7 {[%clk 00:53:32]} {[%emt
00:00:22]} 11. Bxe4 {[%clk 01:00:11]} {[%emt 00:00:09]} Bb7 {[%clk 00:51:16]}
{[%emt 00:02:47]} 12. Qc2 {[%clk 00:52:04]} {[%emt 00:08:36]} Nd7 {[%clk
00:42:22]} {[%emt 00:09:25]} 13. Nxc4 {[%clk 00:47:18]} {[%emt 00:05:16]} Nf6
{[%clk 00:38:37]} {[%emt 00:04:16]} 14. Bf3 {[%clk 00:45:34]} {[%emt 00:02:14]}
O-O {[%clk 00:36:44]} {[%emt 00:02:23]} 15. O-O {[%emt 00:08:59]} Rfd8 {[%clk
00:33:01]} 16. Na5 {[%clk 00:36:49]} {[%emt 00:04:59]} Rxd4 {[%clk 00:26:18]}
{[%emt 00:07:14]} 17. Rac1 {[%clk 00:17:28]} {[%emt 00:19:50]} Rad8 {[%clk
00:19:27]} {[%emt 00:07:21]} 18. Nb3 {[%emt 00:01:15]} R4d7 {[%clk 00:16:31]}
{[%emt 00:03:23]} 19. Qc4 {[%clk 00:16:33]} {[%emt 00:00:43]} e5 {[%clk
00:13:48]} {[%emt 00:03:14]} 20. Bxc6 {[%clk 00:14:35]} {[%emt 00:02:28]} Rc7
{[%clk 00:10:14]} {[%emt 00:04:04]} 21. Qb5 {[%clk 00:14:33]} {[%emt 00:00:32]}
Kf8 {[%clk 00:06:41]} {[%emt 00:04:02]} 22. Na5 {[%clk 00:10:41]} {[%emt
00:04:22]} Bc8 {[%clk 00:04:06]} {[%emt 00:03:05]} 23. Rfd1 {[%clk 00:11:04]}
{[%emt 00:00:07]} Rd6 {[%clk 00:03:29]} {[%emt 00:01:08]} 24. Kg2 {[%clk
00:09:25]} {[%emt 00:02:09]} Bf5 {[%clk 00:01:37]} {[%emt 00:02:22]} 25. Qb8+
{[%clk 00:08:50]} {[%emt 00:01:04]} Bc8 {[%clk 00:01:14]} {[%emt 00:00:53]} 26.
Bb7 {[%clk 00:06:04]} {[%emt 00:03:16]} Rxd1 {[%clk 00:00:32]} {[%emt
00:01:12]} 27. Rxc7 {[%clk 00:06:26]} {[%emt 00:00:08]} Rd8 {[%clk 00:30:29]}
{[%emt 00:00:34]} 1-0

[Event "NJSK 2026 Jeugd B"]
[Site "Helmond, Netherlands"]
[Date "2026.04.30"]
[Round "6.10"]
[White "Darie, Aden"]
[Black "Yantur, Arda"]
[Result "1/2-1/2"]
[TimeControl "90min/40moves + 30min + 30sec/move"]
[WhiteTitle "-"]
[BlackTitle "-"]
[WhiteFideId "1094831"]
[BlackFideId "40102041"]
[WhiteElo "2150"]
[BlackElo "1750"]

1. d4 {[%clk 01:30:55]} {[%emt 00:00:04]} Nf6 {[%clk 01:30:55]} {[%emt
00:00:06]} 2. c4 {[%clk 01:31:01]} {[%emt 00:00:25]} g6 {[%clk 01:31:21]}
{[%emt 00:00:08]} 3. Nc3 {[%clk 01:31:16]} {[%emt 00:00:11]} Bg7 {[%clk
01:31:45]} {[%emt 00:00:06]} 4. e4 {[%clk 01:31:38]} {[%emt 00:00:07]} d6
{[%clk 01:32:13]} {[%emt 00:00:04]} 5. h3 {[%clk 01:31:51]} {[%emt 00:00:16]}
O-O {[%clk 01:31:50]} {[%emt 00:00:52]} 6. Nf3 {[%clk 01:32:01]} {[%emt
00:00:20]} e5 {[%clk 01:25:51]} {[%emt 00:06:30]} 7. dxe5 {[%clk 01:31:04]}
{[%emt 00:01:28]} dxe5 {[%clk 01:26:00]} {[%emt 00:00:21]} 8. Bg5 {[%clk
01:31:23]} {[%emt 00:00:08]} Qxd1+ {[%clk 01:24:38]} {[%emt 00:01:54]} 9. Rxd1
{[%clk 01:31:44]} {[%emt 00:00:09]} c6 {[%clk 01:22:31]} {[%emt 00:02:38]} 10.
Nxe5 {[%clk 01:22:04]} {[%emt 00:10:07]} Nxe4 {[%clk 01:17:43]} {[%emt
00:05:18]} 11. Nxe4 {[%clk 01:22:26]} {[%emt 00:00:07]} Bxe5 {[%clk 01:07:43]}
{[%emt 00:10:31]} 12. Nf6+ {[%clk 01:16:46]} {[%emt 00:06:11]} Kg7 {[%clk
01:04:47]} {[%emt 00:03:26]} 13. Ng4 {[%clk 01:17:08]} {[%emt 00:00:07]} Bxg4
{[%clk 01:02:42]} {[%emt 00:02:35]} 14. hxg4 {[%clk 01:17:30]} {[%emt
00:00:07]} Re8 {[%clk 01:01:55]} {[%emt 00:01:19]} 15. Kd2 {[%clk 01:13:40]}
{[%emt 00:04:18]} Bxb2 {[%clk 00:58:54]} {[%emt 00:03:32]} 16. Rb1 {[%clk
01:13:25]} {[%emt 00:00:45]} Bd4 {[%clk 00:54:43]} {[%emt 00:04:41]} 17. Rxb7
{[%clk 01:13:46]} {[%emt 00:00:08]} c5 {[%clk 00:54:43]} {[%emt 00:00:31]} 18.
Bd3 {[%clk 01:08:22]} {[%emt 00:05:53]} Nc6 {[%clk 00:53:27]} {[%emt 00:01:48]}
19. f4 {[%clk 01:05:22]} {[%emt 00:03:29]} Be3+ {[%clk 00:44:18]} {[%emt
00:09:40]} 20. Kc3 {[%clk 01:05:30]} {[%emt 00:00:21]} Bd4+ {[%clk 00:44:44]}
{[%emt 00:00:05]} 21. Kd2 {[%clk 01:00:03]} {[%emt 00:05:56]} Be3+ {[%clk
00:44:49]} {[%emt 00:00:25]} 22. Kc3 {[%clk 01:00:05]} {[%emt 00:00:27]}
1/2-1/2